bitfinex-derivatives/quotes_BNBF0:USTF0_20230830
["timestamp","ask_amount","ask_price","bid_price","bid_amount"]
[1693412777633,0.81707809,222.03,221.5,0.82827145]
[1693412777826,0.81707809,222.08,221.47,0.07272761]
[1693412778026,0.81707809,222.13,221.48,0.90099906]
[1693412778223,0.81707809,222.12,221.53,0.07272761]
[1693412778423,0.07202616,222.2,221.54,0.82827145]
[1693412778630,0.81737621,222.19,221.54,0.90099906]
[1693412778929,0.81737621,222.18,221.55,0.82827145]
[1693412779229,0.81737621,222.17,221.56,0.07272761]
[1693412779424,0.81737621,222.16,221.57,0.82827145]
[1693412779729,0.81737621,222.15,221.57,0.82827145]
[1693412779929,0.81737621,222.14,221.57,0.82827145]
[1693412780123,0.81737621,222.23,221.57,0.90099906]
[1693412780322,0.8174805,222.22,221.58,0.82827145]
[1693412780527,0.8174805,222.21,221.58,0.82827145]
[1693412780723,0.8174805,222.23,221.57,0.82827145]
[1693412781026,0.8174805,222.22,221.58,0.82827145]
[1693412781226,0.8174805,222.21,221.59,0.82827145]
[1693412781430,0.8174805,222.2,221.6,0.82827145]
[1693412781630,0.8174805,222.19,221.61,0.82827145]
[1693412781931,0.8174805,222.18,221.62,0.82827145]
[1693412782130,0.8174805,222.17,221.63,0.82827145]
[1693412782325,0.8174805,222.16,221.64,0.82827145]
[1693412782531,0.8174805,222.23,221.57,0.82827145]
[1693412782730,0.8174805,222.22,221.58,0.82827145]
[1693412782931,0.8174805,222.21,221.59,0.82827145]
[1693412783123,0.8174805,222.21,221.57,0.82827145]
[1693412783327,0.8174805,222.2,221.58,0.82827145]
[1693412783531,0.8174805,222.23,221.59,0.82827145]
[1693412783731,0.8174805,222.22,221.56,0.82827145]
[1693412783927,0.8174805,222.23,221.57,0.82827145]
[1693412784127,0.8174805,222.22,221.58,0.82827145]
[1693412784324,0.88950666,222.24,221.56,0.82827145]
[1693412784631,0.8174805,222.23,221.57,0.82827145]
[1693412784831,0.8174805,222.23,221.58,0.82827145]
[1693412785031,0.8174805,222.23,221.56,0.82827145]
[1693412785233,0.8174805,222.23,221.57,0.82827145]
[1693412785432,0.8174805,222.24,221.58,0.82827145]
[1693412785631,0.8174805,222.23,221.56,0.82827145]
[1693412785932,0.8174805,222.22,221.57,0.82827145]
[1693412786133,0.8174805,222.24,221.56,0.82827145]
[1693412786333,0.8174805,222.23,221.57,0.82827145]
[1693412786528,0.8174805,222.22,221.56,0.82827145]
[1693412786833,0.8174805,222.21,221.57,0.82827145]
[1693412787034,0.8174805,222.24,221.56,0.82827145]
[1693412787334,0.8174805,222.23,221.57,0.82827145]
[1693412787533,0.8174805,222.22,221.56,0.82827145]
[1693412787832,0.8174805,222.21,221.57,0.82827145]
[1693412788028,0.8174805,222.24,221.56,0.82827145]
[1693412788234,0.8174805,222.23,221.57,0.82827145]
[1693412788433,0.8174805,222.22,221.58,0.82827145]
[1693412788735,0.8174805,222.21,221.59,0.82827145]
[1693412788928,0.8174805,222.24,221.56,0.82827145]
[1693412789127,0.8174805,222.23,221.57,0.82827145]
[1693412789335,0.8174805,222.22,221.58,0.82827145]
[1693412789536,0.8174805,222.21,221.59,0.82827145]
[1693412789735,0.8174805,222.24,221.56,0.82827145]
[1693412789936,0.8174805,222.23,221.57,0.82827145]
[1693412790136,0.8174805,222.22,221.58,0.82827145]
[1693412790338,0.8174805,222.21,221.59,0.82827145]
[1693412790538,0.8174805,222.23,221.56,0.82827145]
[1693412790830,0.8174805,222.22,221.57,0.82827145]
[1693412791035,0.8174805,222.21,221.58,0.82827145]
[1693412791231,0.8174805,222.2,221.59,0.82827145]
[1693412791431,0.8174805,222.19,221.6,0.82827145]
[1693412791734,0.8174805,222.18,221.61,0.82827145]
[1693412791928,0.8174805,222.17,221.62,0.82827145]
[1693412792129,0.8174805,222.21,221.55,0.82827145]
[1693412792329,0.07206752,222.17,221.56,0.82827145]
[1693412792530,0.88954802,222.16,221.5,0.82827145]
[1693412792731,0.8174805,222.15,221.51,0.82827145]
[1693412792936,0.8174805,222.16,221.5,0.82827145]
[1693412793235,0.8174805,222.15,221.51,0.82827145]
[1693412793535,0.8174805,222.14,221.52,0.82827145]
[1693412793734,0.8174805,222.13,221.53,0.82827145]
[1693412793930,0.8174805,222.12,221.54,0.82827145]
[1693412794127,0.8174805,222.16,221.5,0.82827145]
[1693412794535,0.8174805,222.17,221.5,0.82827145]
[1693412794735,0.8174805,222.16,221.5,0.82827145]
[1693412795037,0.8174805,222.15,221.5,0.82827145]
[1693412795229,0.8174805,222.17,221.5,0.82827145]
[1693412795535,0.8174805,222.16,221.5,0.90126313]
[1693412795729,0.8174805,222.15,221.51,0.82827145]
[1693412795930,0.8174805,222.14,221.52,0.82827145]
[1693412796134,0.8174805,222.13,221.53,0.82827145]
[1693412796337,0.8174805,222.17,221.5,0.82827145]
[1693412796537,0.8174805,222.16,221.51,0.82827145]
[1693412796739,0.8174805,222.17,221.5,0.90126313]
[1693412797037,0.8174805,222.16,221.51,0.82827145]
[1693412798233,0.8174805,222.16,221.49,0.07299168]
[1693412798234,0.8174805,222.16,221.52,0.82827145]
[1693412798538,0.8174805,222.16,221.53,0.82827145]
[1693412798738,0.8174805,222.16,221.54,0.82827145]
[1693412799032,0.8174805,222.16,221.5,0.07299168]
[1693412799033,0.8174805,222.16,221.55,0.82827145]
[1693412799238,0.8174805,222.16,221.51,0.82827145]
[1693412799434,0.8174805,222.16,221.52,0.82827145]
[1693412800238,0.8174805,222.16,221.56,0.07299168]
[1693412800434,0.07206752,222.22,221.5,0.14598337]
[1693412800435,0.8174805,222.15,221.57,0.90126313]
[1693412800634,0.8174805,222.14,221.58,0.82827145]
[1693412800839,0.8174805,222.13,221.58,0.82827145]
[1693412801131,0.07206752,222.22,221.58,0.82827145]
[1693412801338,0.8894,222.21,221.58,0.90126313]
[1693412801538,0.81733248,222.2,221.59,0.82827145]
[1693412802341,0.8894,222.2,221.59,0.90126313]
[1693412802541,0.81733248,222.19,221.6,0.82827145]
[1693412802744,0.81733248,222.19,221.63,0.07299168]
[1693412802966,0.07206752,222.26,221.65,0.07299168]
[1693412803143,0.81761383,222.25,221.66,0.82827145]
[1693412803343,0.88968135,222.26,221.66,0.90126313]
[1693412803536,0.81761383,222.25,221.67,0.82827145]
[1693412803941,0.81761383,222.25,221.67,0.90126313]
[1693412804241,0.81761383,222.25,221.68,0.82827145]
[1693412804436,0.81761383,222.25,221.68,0.90126313]
[1693412804437,0.88968135,222.25,221.68,0.90126313]
[1693412804642,0.81761383,222.24,221.69,0.82827145]
[1693412805236,0.88968135,222.24,221.69,0.90126313]
[1693412805443,0.81761383,222.23,221.7,0.82827145]
[1693412806341,0.88968135,222.23,221.7,0.90126313]
[1693412806643,0.81761383,222.22,221.71,0.82827145]
[1693412808344,0.88968135,222.22,221.71,0.90126313]
[1693412808541,0.81761383,222.21,221.72,0.82827145]
[1693412809443,0.88968135,222.21,221.72,0.90126313]
[1693412809639,0.81761383,222.2,221.73,0.82827145]
[1693412809942,0.07206752,222.21,221.73,0.82827145]
[1693412810941,0.07206752,222.22,221.73,0.90126313]
[1693412811138,0.07206752,222.22,221.74,0.90126313]
[1693412811445,0.07206752,222.23,221.75,0.82827145]
[1693412811645,0.81775052,222.22,221.75,0.82827145]
[1693412811848,0.07206752,222.23,221.75,0.82827145]
[1693412812239,0.07206752,222.23,221.75,0.90126313]
[1693412812444,0.07206752,222.23,221.6,0.48661126]
[1693412812445,0.07206752,222.22,221.76,0.90126313]
[1693412812645,0.07206752,222.23,221.77,0.90126313]
[1693412812847,0.07206752,222.27,221.82,0.07299168]
[1693412813046,0.07206752,222.28,221.83,0.82827145]
[1693412813242,0.07206752,222.3,221.83,0.82827145]
[1693412813450,0.81789311,222.29,221.83,0.82827145]
[1693412813749,0.81789311,222.29,221.84,0.82827145]
[1693412813949,0.81789311,222.29,221.85,0.82827145]
[1693412814249,0.07206752,222.3,221.86,0.82827145]
[1693412814451,0.07206752,222.32,221.87,0.82827145]
[1693412814647,0.88998027,222.31,221.88,0.82827145]
[1693412814843,0.81791275,222.3,221.89,0.82827145]
[1693412815042,0.81791275,222.3,221.9,0.82827145]
[1693412815242,0.07206752,222.32,221.8,0.82827145]
[1693412815448,0.81791336,222.31,221.81,0.82827145]
[1693412815748,0.81791336,222.3,221.82,0.82827145]
[1693412815943,0.81791336,222.32,221.79,0.82827145]
[1693412816149,0.81790337,222.31,221.8,0.82827145]
[1693412816343,0.81790337,222.32,221.81,0.82827145]
[1693412816547,0.81790337,222.31,221.82,0.82827145]
[1693412816848,0.81790337,222.31,221.83,0.82827145]
[1693412817048,0.81790337,222.31,221.84,0.82827145]
[1693412817243,0.81790337,222.31,221.85,0.82827145]
[1693412817442,0.81790337,222.31,221.86,0.82827145]
[1693412817646,0.81790337,222.3,221.87,0.82827145]
[1693412817850,0.81790337,222.32,221.77,0.82827145]
[1693412818049,0.81790337,222.31,221.78,0.82827145]
[1693412818251,0.81790337,222.32,221.77,0.82827145]
[1693412818452,0.81790337,222.31,221.78,0.82827145]
[1693412818652,0.81790337,222.33,221.76,0.82827145]
[1693412818845,0.81790337,222.32,221.77,0.82827145]
[1693412819046,0.81790337,222.31,221.78,0.82827145]
[1693412819251,0.81790337,222.33,221.76,0.82827145]
[1693412819447,0.81790337,222.32,221.77,0.82827145]
[1693412819647,0.81790337,222.33,221.76,0.82827145]
[1693412819850,0.81790337,222.32,221.77,0.82827145]
[1693412820050,0.81790337,222.33,221.76,0.82827145]
[1693412820249,0.81790337,222.32,221.77,0.82827145]
[1693412820447,0.81790337,222.33,221.76,0.82827145]
[1693412820749,0.07206752,222.35,221.77,0.82827145]
[1693412820750,0.81790337,222.32,221.77,0.82827145]
[1693412820951,0.81790337,222.31,221.78,0.82827145]
[1693412821153,0.81790337,222.3,221.79,0.82827145]
[1693412821351,0.81790337,222.34,221.76,0.82827145]
[1693412821548,0.81790337,222.33,221.77,0.82827145]
[1693412821756,0.81790337,222.34,221.75,0.82827145]
[1693412821950,0.81790337,222.33,221.76,0.82827145]
[1693412822148,0.81790337,222.32,221.77,0.82827145]
[1693412822355,0.81790337,222.31,221.78,0.82827145]
[1693412822549,0.81790337,222.3,221.79,0.82827145]
[1693412822749,0.81790337,222.35,221.75,0.82827145]
[1693412823555,0.81790337,222.35,221.74,0.82827145]
[1693412823756,0.81790337,222.35,221.75,0.82827145]
[1693412823955,0.81790337,222.35,221.76,0.82827145]
[1693412824155,0.81790337,222.35,221.73,0.07299168]
[1693412824156,0.81790337,222.34,221.77,0.82827145]
[1693412824451,0.81790337,222.33,221.78,0.82827145]
[1693412824756,0.81790337,222.32,221.79,0.82827145]
[1693412824951,0.81790337,222.36,221.74,0.82827145]
[1693412825150,0.81790337,222.35,221.75,0.82827145]
[1693412825351,0.81790337,222.34,221.76,0.82827145]
[1693412825656,0.81790337,222.33,221.77,0.82827145]
[1693412825855,0.81790337,222.37,221.74,0.82827145]
[1693412826057,0.81790337,222.36,221.75,0.82827145]
[1693412826258,0.81790337,222.37,221.74,0.82827145]
[1693412826558,0.81790337,222.36,221.75,0.82827145]
[1693412826859,0.81790337,222.36,221.73,0.07299168]
[1693412826860,0.81790337,222.35,221.76,0.82827145]
[1693412827157,0.81790337,222.34,221.77,0.82827145]
[1693412827358,0.81790337,222.37,221.73,0.82827145]
[1693412827557,0.81790337,222.36,221.74,0.82827145]
[1693412827758,0.81790337,222.35,221.75,0.82827145]
[1693412827952,0.81790337,222.34,221.76,0.82827145]
[1693412828158,0.81790337,222.37,221.73,0.82827145]
[1693412828359,0.81790337,222.36,221.74,0.82827145]
[1693412828659,0.81790337,222.35,221.75,0.82827145]
[1693412828855,0.81790337,222.34,221.75,0.82827145]
[1693412829057,0.81790337,222.33,221.75,0.82827145]
[1693412829253,0.81790337,222.39,221.75,0.82827145]
[1693412829457,0.81790337,222.38,221.75,0.90126313]
[1693412829658,0.81790337,222.38,221.76,0.82827145]
[1693412830153,0.81790337,222.38,221.75,0.90126313]
[1693412830354,0.81790337,222.38,221.76,0.82827145]
[1693412830554,0.88997089,222.38,221.76,0.82827145]
[1693412830758,0.81790337,222.37,221.76,0.82827145]
[1693412831462,0.88997089,222.37,221.76,0.90126313]
[1693412831755,0.81790337,222.36,221.77,0.82827145]
[1693412832356,0.88997089,222.36,221.78,0.07299168]
[1693412832555,0.81790337,222.35,221.79,0.82827145]
[1693412833358,0.07206752,222.34,221.8,0.07299168]
[1693412833559,0.81790337,222.33,221.81,0.82827145]
[1693412834258,0.81790337,222.33,221.82,0.82827145]
[1693412834461,0.07206752,222.32,221.83,0.82827145]
[1693412834761,0.81790337,222.31,221.83,0.82827145]
[1693412835354,0.88997089,222.31,221.83,0.90126313]
[1693412835558,0.07206752,222.31,221.84,0.82827145]
[1693412836356,0.07206752,222.29,221.84,0.90126313]
[1693412836663,0.07206752,222.28,221.85,0.82827145]
[1693412836962,0.07206752,222.28,221.86,0.82827145]
[1693412837165,0.07206752,222.28,221.87,0.82827145]
[1693412837363,0.07206752,222.28,221.88,0.82827145]
[1693412837663,0.07206752,222.28,221.89,0.82827145]
[1693412837857,0.07206752,222.27,221.84,0.90126313]
[1693412838063,0.07206752,222.27,221.85,0.82827145]
[1693412838865,0.07206752,222.24,221.85,0.82827145]
[1693412839161,0.07206752,222.24,221.86,0.82827145]
[1693412839162,0.07206752,222.22,221.86,0.82827145]
[1693412839365,0.07206752,222.22,221.8,0.90126313]
[1693412839566,0.07206752,222.22,221.81,0.82827145]
[1693412840367,0.07206752,222.21,221.81,0.82827145]
[1693412841469,0.07206752,222.21,221.81,0.90126313]
[1693412841663,0.07206752,222.21,221.82,0.82827145]
[1693412842269,0.07206752,222.2,221.82,0.90126313]
[1693412842570,0.07206752,222.21,221.83,0.82827145]
[1693412843367,0.07206752,222.2,221.83,0.90126313]
[1693412843563,0.07206752,222.2,221.84,0.82827145]
[1693412844269,0.07206752,222.19,221.84,0.82827145]
[1693412844769,0.07206752,222.2,221.84,0.90126313]
[1693412845068,0.07206752,222.24,221.89,0.07299168]
[1693412845270,0.07206752,222.25,221.9,0.82827145]
[1693412845568,0.07206752,222.24,221.9,0.90126313]
[1693412845769,0.07206752,222.24,221.91,0.82827145]
[1693412846367,0.07206752,222.23,221.91,0.90126313]
[1693412846670,0.07206752,222.23,221.92,0.82827145]
[1693412849871,0.07206752,222.24,221.92,0.90126313]
[1693412850074,0.07206752,222.24,221.93,0.82827145]
[1693412850967,0.07206752,222.28,221.96,0.07299168]
[1693412851166,0.07206752,222.29,221.97,0.90126313]
[1693412851372,0.07206752,222.29,221.98,0.82827145]
[1693412851766,0.07206752,222.3,221.98,0.82827145]
[1693412852073,2.4022506,222.43,221.98,0.82827145]
[1693412852074,0.07206752,222.31,221.98,0.82827145]
[1693412852272,0.07206752,222.31,221.97,0.82827145]
[1693412852474,0.07206752,222.31,221.98,0.82827145]
[1693412852667,0.07206752,222.31,221.99,0.82827145]
[1693412852867,0.07206752,222.31,221.97,0.82827145]
[1693412853073,0.07206752,222.31,221.98,0.82827145]
[1693412853266,0.07206752,222.31,221.97,0.82827145]
[1693412853470,0.07206752,222.31,221.98,0.82827145]
[1693412853670,0.07206752,222.31,221.99,0.82827145]
[1693412853873,0.07206752,222.32,221.97,0.82827145]
[1693412854072,0.07206752,222.32,221.98,0.82827145]
[1693412854274,0.07206752,222.32,221.96,0.82827145]
[1693412854574,0.07206752,222.32,221.97,0.82827145]
[1693412854775,0.07206752,222.32,221.96,0.82827145]
[1693412855074,0.07206752,222.32,221.97,0.82827145]
[1693412855374,0.07206752,222.32,221.98,0.82827145]
[1693412855574,0.07206752,222.32,221.99,0.82827145]
[1693412855873,0.07206752,222.32,222.0,0.82827145]
[1693412856068,0.07206752,222.33,221.95,0.82827145]
[1693412856268,0.07206752,222.33,221.96,0.82827145]
[1693412856466,0.07206752,222.33,221.95,0.82827145]
[1693412856670,0.07206752,222.33,221.96,0.82827145]
[1693412856869,0.07206752,222.33,221.94,0.07299168]
[1693412856870,0.07206752,222.33,221.97,0.82827145]
[1693412857072,0.07206752,222.33,221.93,0.07299168]
[1693412857073,0.07206752,222.33,221.98,0.82827145]
[1693412857274,0.07206752,222.33,221.94,0.82827145]
[1693412857473,0.07206752,222.33,221.95,0.82827145]
[1693412857668,0.07206752,222.33,221.94,0.82827145]
[1693412858969,0.07206752,222.34,221.94,0.82827145]
[1693412859174,0.07206752,222.34,221.95,0.82827145]
[1693412859473,0.07206752,222.34,221.96,0.82827145]
[1693412859674,0.07206752,222.34,221.93,0.82827145]
[1693412859875,0.07206752,222.34,221.94,0.82827145]
[1693412860077,0.07206752,222.34,221.93,0.82827145]
[1693412860276,0.07206752,222.34,221.94,0.82827145]
[1693412860574,0.07206752,222.34,221.95,0.82827145]
[1693412860775,0.07206752,222.35,221.96,0.82827145]
[1693412861074,0.07206752,222.35,221.97,0.82827145]
[1693412861276,0.07206752,222.34,221.93,0.82827145]
[1693412861573,0.07206752,222.34,221.94,0.82827145]
[1693412861774,0.07206752,222.35,221.93,0.82827145]
[1693412861969,0.07206752,222.35,221.94,0.82827145]
[1693412862170,0.07206752,222.35,221.93,0.82827145]
[1693412862372,0.07206752,222.35,221.94,0.82827145]
[1693412862574,0.07206752,222.34,221.95,0.82827145]
[1693412862770,0.07206752,222.35,221.92,0.82827145]
[1693412862970,0.07206752,222.35,221.93,0.82827145]
[1693412863272,0.07206752,222.34,221.94,0.82827145]
[1693412863477,0.07206752,222.34,221.92,0.82827145]
[1693412863676,0.07206752,222.34,221.93,0.82827145]
[1693412863870,0.07206752,222.34,221.94,0.82827145]
[1693412864075,0.07206752,222.34,221.95,0.82827145]
[1693412864274,0.07206752,222.35,221.96,0.82827145]
[1693412864576,0.07206752,222.34,221.97,0.82827145]
[1693412864877,0.07206752,222.34,221.98,0.82827145]
[1693412865177,0.07206752,222.35,221.99,0.82827145]
[1693412865370,0.07206752,222.35,221.92,0.82827145]
[1693412865574,0.07206752,222.35,221.93,0.82827145]
[1693412865775,0.07206752,222.35,221.92,0.82827145]
[1693412865976,0.07206752,222.35,221.93,0.82827145]
[1693412866170,0.07206752,222.35,221.92,0.82827145]
[1693412866374,0.07206752,222.35,221.93,0.82827145]
[1693412866573,0.07206752,222.35,221.94,0.82827145]
[1693412866769,0.07206752,222.35,221.95,0.82827145]
[1693412866971,0.07206752,222.36,221.96,0.82827145]
[1693412867180,0.07206752,222.36,221.97,0.82827145]
[1693412867379,0.07206752,222.36,221.92,0.82827145]
[1693412867579,0.07206752,222.36,221.93,0.82827145]
[1693412867779,0.07206752,222.36,221.92,0.82827145]
[1693412867982,0.07206752,222.36,221.93,0.82827145]
[1693412868282,0.07206752,222.36,221.94,0.82827145]
[1693412868478,0.07206752,222.36,221.95,0.82827145]
[1693412868679,0.07206752,222.36,221.92,0.82827145]
[1693412868878,0.07206752,222.36,221.93,0.82827145]
[1693412869081,0.07206752,222.36,221.92,0.82827145]
[1693412869282,0.07206752,222.36,221.93,0.82827145]
[1693412869580,0.07206752,222.36,221.94,0.82827145]
[1693412869783,0.07206752,222.36,221.95,0.82827145]
[1693412869982,0.07206752,222.36,221.96,0.82827145]
[1693412870182,0.07206752,222.36,221.92,0.82827145]
[1693412870378,0.07206752,222.36,221.97,0.82827145]
[1693412870583,0.07206752,222.36,221.98,0.82827145]
[1693412870779,0.07206752,222.36,221.91,0.82827145]
[1693412870984,0.07206752,222.36,221.92,0.82827145]
[1693412871183,0.07206752,222.36,221.93,0.82827145]
[1693412871480,0.07206752,222.36,221.94,0.82827145]
[1693412871685,0.07206752,222.36,221.91,0.82827145]
[1693412871882,0.07206752,222.36,221.92,0.82827145]
[1693412872082,0.07206752,222.36,221.91,0.82827145]
[1693412872383,0.07206752,222.36,221.92,0.82827145]
[1693412872683,0.07206752,222.36,221.93,0.82827145]
[1693412872886,0.07206752,222.36,221.94,0.82827145]
[1693412873082,0.07206752,222.36,221.84,0.14598337]
[1693412873083,0.07206752,222.36,221.92,0.82827145]
[1693412873279,0.07206752,222.36,221.93,0.82827145]
[1693412873479,0.07206752,222.37,221.92,0.82827145]
[1693412873684,0.07206752,222.37,221.93,0.82827145]
[1693412873886,0.07206752,222.37,221.91,0.07299168]
[1693412873887,0.07206752,222.37,221.94,0.82827145]
[1693412874081,0.07206752,222.37,221.95,0.82827145]
[1693412874283,0.07206752,222.37,221.96,0.82827145]
[1693412874487,0.07206752,222.37,221.92,0.82827145]
[1693412874688,0.07206752,222.37,221.93,0.82827145]
[1693412874989,2.4022506,222.51,221.94,0.82827145]
[1693412874990,0.07206752,222.36,221.94,0.82827145]
[1693412875184,0.07206752,222.36,221.95,0.82827145]
[1693412875385,0.07206752,222.36,221.96,0.82827145]
[1693412875586,0.07206752,222.36,221.97,0.82827145]
[1693412875782,0.07206752,222.35,221.98,0.82827145]
[1693412875987,0.07206752,222.35,221.99,0.82827145]
[1693412876189,0.07206752,222.35,221.94,0.82827145]
[1693412876384,0.07206752,222.35,221.95,0.82827145]
[1693412876590,0.07206752,222.35,221.94,0.82827145]
[1693412876784,0.07206752,222.35,221.95,0.82827145]
[1693412876988,0.07206752,222.34,221.96,0.82827145]
[1693412877290,0.07206752,222.34,221.97,0.82827145]
[1693412877489,0.07206752,222.34,221.93,0.07299168]
[1693412877490,0.07206752,222.34,221.94,0.82827145]
[1693412877689,0.07206752,222.34,221.95,0.82827145]
[1693412877889,0.07206752,222.34,221.94,0.82827145]
[1693412878090,0.07206752,222.33,221.95,0.82827145]
[1693412878284,0.07206752,222.33,221.94,0.82827145]
[1693412878488,0.07206752,222.33,221.95,0.82827145]
[1693412878688,0.07206752,222.32,221.96,0.82827145]
[1693412878885,0.07206752,222.32,221.97,0.82827145]
[1693412879085,0.07206752,222.32,221.98,0.82827145]
[1693412879290,0.07206752,222.32,221.96,0.82827145]
[1693412879489,0.07206752,222.32,221.97,0.82827145]
[1693412879690,0.07206752,222.32,221.96,0.82827145]
[1693412879890,0.07206752,222.3,221.97,0.82827145]
[1693412880893,0.07206752,222.3,221.97,0.90126313]
[1693412881085,0.07206752,222.3,221.98,0.82827145]
[1693412881895,0.07206752,222.29,221.98,0.82827145]
[1693412882790,0.07206752,222.29,221.98,0.90126313]
[1693412882990,0.07206752,222.29,221.99,0.82827145]
[1693412883896,0.07206752,222.28,221.99,0.90126313]
[1693412884098,0.07206752,222.28,222.0,0.82827145]
[1693412884796,0.07206752,222.26,222.0,0.90126313]
[1693412885095,0.07206752,222.26,222.01,0.82827145]
[1693412885896,0.07206752,222.24,222.02,0.07299168]
[1693412886096,0.07206752,222.24,222.03,0.82827145]
[1693412888199,0.07206752,222.25,222.03,0.82827145]
[1693412889593,0.07206752,222.25,222.03,0.90126313]
[1693412889800,0.07206752,222.25,222.04,0.82827145]
[1693412889999,0.07206752,222.24,222.02,0.07299168]
[1693412890200,0.07206752,222.24,222.03,0.82696393]
[1693412890395,0.07206752,222.25,222.03,0.82696393]
[1693412890799,0.07206752,222.24,222.03,0.82696393]
[1693412898504,0.07206752,222.24,222.02,0.82696393]
[1693412898710,0.07206752,222.24,222.03,0.82696393]
[1693412898904,0.07206752,222.24,222.02,0.82696393]
[1693412899110,0.07206752,222.24,222.03,0.82696393]
[1693412899303,0.07206752,222.24,222.02,0.82696393]
[1693412899503,0.07206752,222.24,222.03,0.82696393]
[1693412899706,0.07206752,222.24,222.02,0.82696393]
[1693412899905,0.07206752,222.24,222.03,0.82696393]
[1693412900106,0.07206752,222.24,222.04,0.82696393]
[1693412900308,0.07206752,222.24,222.01,0.07299168]
[1693412900506,0.07206752,222.24,222.02,0.8270006]
[1693412904012,0.07206752,222.25,222.02,0.89999228]
[1693412904211,0.07206752,222.25,222.03,0.8270006]
[1693412904408,0.07206752,222.24,222.03,0.8270006]
[1693412906912,0.14413504,222.26,222.03,0.8270006]
[1693412906913,0.07206752,222.25,222.03,0.8270006]
[1693412907112,0.07206752,222.24,222.03,0.8270006]
[1693412907415,0.07206752,222.24,222.01,0.07299168]
[1693412907712,0.07206752,222.24,222.02,0.8270029]
[1693412911615,0.07206752,222.24,222.02,0.89999458]
[1693412911814,0.07206752,222.24,222.03,0.8270029]
[1693412912014,0.07206752,222.24,222.04,0.8270029]
[1693412912215,0.07206752,222.24,222.02,0.8270029]
[1693412912411,0.07206752,222.24,222.03,0.82698734]
[1693412912615,0.07206752,222.24,222.02,0.82698734]
[1693412912810,0.07206752,222.24,222.03,0.82698734]
[1693412913115,0.07206752,222.24,222.01,0.07299168]
[1693412913415,0.07206752,222.24,222.02,0.89998673]
[1693412913611,0.07206752,222.24,222.03,0.82699505]
[1693412913813,0.07206752,222.24,222.02,0.82699505]
[1693412914113,0.07206752,222.24,222.03,0.82699505]
[1693412914314,0.07206752,222.25,222.03,0.82699505]
[1693412917919,0.07206752,222.26,222.03,0.89998673]
[1693412918120,0.07206752,222.26,222.04,0.82699505]
[1693412919919,0.07206752,222.27,222.04,0.82699505]
[1693412925022,0.07206752,222.28,222.04,0.82699505]
[1693412927424,0.07206752,222.29,222.04,0.82699505]
[1693412929224,0.07206752,222.29,222.05,0.82699505]
[1693412929423,0.07206752,222.29,222.03,0.82699505]
[1693412929626,0.07206752,222.29,222.04,0.82699505]
[1693412930024,0.07206752,222.29,222.03,0.82699505]
[1693412930224,0.07206752,222.29,222.04,0.82699505]
[1693412930526,0.07206752,222.29,222.05,0.82699505]
[1693412930726,0.07206752,222.29,222.06,0.82699505]
[1693412930926,0.07206752,222.29,222.07,0.82699505]
[1693412931126,0.07206752,222.28,222.03,0.82699505]
[1693412931327,0.07206752,222.29,222.04,0.8268997]
[1693412931527,0.07206752,222.29,222.05,0.8268997]
[1693412931726,0.07206752,222.29,222.06,0.8268997]
[1693412931927,0.07206752,222.29,222.03,0.8268997]
[1693412932130,0.07206752,222.29,222.04,0.8268997]
[1693412932324,0.07206752,222.29,222.03,0.8268997]
[1693412932630,0.07206752,222.29,222.04,0.8268997]
[1693412932830,0.07206752,222.29,222.03,0.8268997]
[1693412933028,0.07206752,222.29,222.04,0.8268997]
[1693412933227,0.07206752,222.29,222.05,0.8268997]
[1693412933424,0.07206752,222.29,222.03,0.8268997]
[1693412933623,0.07206752,222.29,222.04,0.8268997]
[1693412933827,0.07206752,222.29,222.03,0.8268997]
[1693412934026,0.07206752,222.29,222.04,0.8268997]
[1693412934225,0.07206752,222.29,222.05,0.8268997]
[1693412934425,0.07206752,222.29,222.06,0.8268997]
[1693412934631,0.07206752,222.29,222.03,0.8268997]
[1693412934928,0.07206752,222.29,222.04,0.8268997]
[1693412935124,0.07206752,222.29,222.05,0.8268997]
[1693412935328,0.07206752,222.29,222.03,0.8268997]
[1693412935528,0.07206752,222.29,222.04,0.8268997]
[1693412935729,0.07206752,222.29,222.03,0.8268997]
[1693412936931,0.07206752,222.29,222.04,0.8268997]
[1693412937130,0.07206752,222.29,222.02,0.89989138]
[1693412937431,0.07206752,222.29,222.03,0.8268997]
[1693412939630,0.07206752,222.3,222.03,0.89989138]
[1693412939825,0.07206752,222.31,222.04,0.89989138]
[1693412940028,0.48045013,222.36,221.62,4.6575649]
[1693412940029,0.07206752,222.36,222.09,0.07299168]
[1693412940227,0.07206752,222.37,222.1,0.8268997]
[1693412940429,0.07206752,222.36,222.1,0.8268997]
[1693412940628,0.07206752,222.37,222.1,0.8268997]
[1693412940829,0.07206752,222.36,222.1,0.8268997]
[1693412942537,0.07206752,222.38,222.1,0.8268997]
[1693412942837,0.07206752,222.37,222.11,0.8268997]
[1693412943035,0.07206752,222.37,222.12,0.8268997]
[1693412943237,0.07206752,222.37,222.13,0.8268997]
[1693412943436,0.07206752,222.37,222.08,0.8268997]
[1693412943636,0.07206752,222.37,222.09,0.8268997]
[1693412943838,0.07206752,222.38,222.08,0.8268997]
[1693412944138,0.07206752,222.38,222.09,0.8268997]
[1693412944437,0.07206752,222.38,222.1,0.8268997]